fUSD/lending_fUSD_20251225
["ID","MTS","AMOUNT","RATE_DAILY","PERIOD"]
[399805785,1766687446591,-150.0,0.00016349,2]
[399805807,1766687446900,-177.03875056,0.00016351,2]
[399805808,1766687446911,-150.0,0.00016354,2]
[399805809,1766687446922,-150.0,0.00016355,2]
[399805810,1766687446932,-150.0,0.00016357,2]
[399805811,1766687446942,-150.0,0.00016359,2]
[399805812,1766687446952,-150.0,0.0001636,2]
[399805813,1766687446962,-150.0,0.00016363,2]
[399805814,1766687446974,-177.03875056,0.00016369,2]
[399805815,1766687446984,-150.0,0.00016374,2]
[399805816,1766687446995,-150.0,0.00016378,2]
[399805817,1766687447006,-150.0,0.0001638,2]
[399805818,1766687447016,-722.0,0.0001638,2]
[399805819,1766687447027,-177.03875056,0.00016386,2]
[399805820,1766687447038,-215.0738,0.00016391,2]
[399805821,1766687447048,-150.0,0.00016392,2]
[399805822,1766687447059,-150.0,0.00016394,2]
[399805823,1766687447069,-150.0,0.00016395,2]
[399805824,1766687447080,-150.0,0.00016395,2]
[399805825,1766687447090,-150.0,0.00016399,2]
[399805826,1766687447101,-228.0,0.000164,2]
[399805827,1766687447111,-319.0,0.000164,2]
[399805828,1766687447121,-182.0,0.000164,2]
[399805829,1766687447132,-184.24951816,0.000164,2]
[399805830,1766687447145,-177.03875056,0.00016403,2]
[399805831,1766687447155,-150.0,0.00016404,2]
[399805832,1766687447166,-150.0,0.0001641,2]
[399805833,1766687447176,-150.0,0.00016414,2]
[399805834,1766687447186,-150.0,0.0001642,2]
[399805835,1766687447196,-150.0,0.0001642,2]
[399805836,1766687447207,-150.0,0.0001642,2]
[399805837,1766687447217,-177.03875056,0.0001642,2]
[399805838,1766687447229,-150.0,0.0001642,2]
[399805839,1766687447239,-150.0,0.0001642,2]
[399805840,1766687447250,-722.0,0.00016431,2]
[399805841,1766687447260,-150.0,0.00016432,2]
[399805842,1766687447272,-150.0,0.00016433,2]
[399805843,1766687447285,-177.03875056,0.00016437,2]
[399805844,1766687447295,-500.0,0.00016438,2]
[399805845,1766687447305,-500.0,0.00016438,2]
[399805846,1766687447316,-500.0,0.00016438,2]
[399805847,1766687447325,-500.0,0.00016438,2]
[399805848,1766687447334,-500.0,0.00016438,2]
[399805849,1766687447345,-500.0,0.00016438,2]
[399805850,1766687447355,-500.0,0.00016438,2]
[399805851,1766687447365,-500.0,0.00016438,2]
[399805852,1766687447375,-500.0,0.00016438,2]
[399805853,1766687447385,-500.0,0.00016438,2]
[399805854,1766687447396,-500.0,0.00016438,2]
[399805855,1766687447406,-500.0,0.00016438,2]
[399805856,1766687447418,-500.0,0.00016438,2]
[399805857,1766687447428,-500.0,0.00016438,2]
[399805858,1766687447438,-500.0,0.00016438,2]
[399805859,1766687447448,-500.0,0.00016438,2]
[399805860,1766687447458,-500.0,0.00016438,2]
[399805861,1766687447468,-500.0,0.00016438,2]
[399805862,1766687447479,-500.0,0.00016438,2]
[399805863,1766687447489,-500.0,0.00016438,2]
[399805864,1766687447499,-500.0,0.00016438,2]
[399805865,1766687447510,-500.0,0.00016438,2]
[399805866,1766687447520,-500.0,0.00016438,2]
[399805867,1766687447530,-500.0,0.00016438,2]
[399805868,1766687447540,-500.0,0.00016438,2]
[399805869,1766687447550,-500.0,0.00016438,2]
[399805870,1766687447560,-500.0,0.00016438,2]
[399805871,1766687447570,-500.0,0.00016438,2]
[399805872,1766687447580,-500.0,0.00016438,2]
[399805873,1766687447590,-500.0,0.00016438,2]
[399805874,1766687447601,-500.0,0.00016438,2]
[399805875,1766687447611,-500.0,0.00016438,2]
[399805876,1766687447621,-500.0,0.00016438,2]
[399805877,1766687447631,-500.0,0.00016438,2]
[399805878,1766687447641,-500.0,0.00016438,2]
[399805879,1766687447650,-500.0,0.00016438,2]
[399805880,1766687447660,-500.0,0.00016438,2]
[399805881,1766687447670,-500.0,0.00016438,2]
[399805882,1766687447679,-500.0,0.00016438,2]
[399805883,1766687447689,-500.0,0.00016438,2]
[399805884,1766687447699,-446.97833008,0.00016438,2]
[399805885,1766687447710,-500.0,0.00016438,2]
[399805886,1766687447720,-500.0,0.00016438,2]
[399805887,1766687447730,-500.0,0.00016438,2]
[399805888,1766687447740,-539.20401043,0.00016438,2]
[399805889,1766687447750,-539.20401043,0.00016438,2]
[399805890,1766687447760,-539.20401043,0.00016438,2]
[399805891,1766687447771,-539.20401043,0.00016438,2]
[399805892,1766687447781,-539.20401043,0.00016438,2]
[399805893,1766687447790,-539.20401043,0.00016438,2]
[399805894,1766687447800,-539.20401043,0.00016438,2]
[399805895,1766687447811,-539.20401043,0.00016438,2]
[399805896,1766687447821,-539.20401043,0.00016438,2]
[399805897,1766687447831,-539.20401043,0.00016438,2]
[399805898,1766687447841,-539.20401043,0.00016438,2]
[399805899,1766687447851,-539.20401043,0.00016438,2]
[399805900,1766687447862,-539.20401043,0.00016438,2]
[399805901,1766687447872,-539.20401043,0.00016438,2]
[399805902,1766687447882,-539.20401043,0.00016438,2]
[399805903,1766687447893,-539.20401043,0.00016438,2]
[399805904,1766687447903,-539.20401043,0.00016438,2]
[399805905,1766687447913,-539.20401043,0.00016438,2]
[399805906,1766687447924,-539.20401043,0.00016438,2]
[399805907,1766687447934,-539.20401043,0.00016438,2]
[399805908,1766687447944,-539.20401043,0.00016438,2]
[399805909,1766687447954,-539.20401043,0.00016438,2]
[399805910,1766687447964,-539.20401043,0.00016438,2]
[399805911,1766687447973,-533.81197033,0.00016438,2]
[399805912,1766687447983,-533.81197033,0.00016438,2]
[399805913,1766687447996,-533.81197033,0.00016438,2]
[399805914,1766687448007,-533.81197033,0.00016438,2]
[399805915,1766687448017,-533.81197033,0.00016438,2]
[399805916,1766687448026,-533.81197033,0.00016438,2]
[399805917,1766687448037,-533.81197033,0.00016438,2]
[399805918,1766687448047,-533.81197033,0.00016438,2]
[399805919,1766687448057,-533.81197033,0.00016438,2]
[399805920,1766687448067,-533.81197033,0.00016438,2]
[399805921,1766687448077,-533.81197033,0.00016438,2]
[399805922,1766687448087,-533.81197033,0.00016438,2]
[399805923,1766687448097,-533.81197033,0.00016438,2]
[399805924,1766687448107,-533.81197033,0.00016438,2]
[399805925,1766687448118,-533.81197033,0.00016438,2]
[399805926,1766687448128,-533.81197033,0.00016438,2]
[399805927,1766687448137,-533.81197033,0.00016438,2]
[399805928,1766687448147,-533.81197033,0.00016438,2]
[399805929,1766687448157,-533.81197033,0.00016438,2]
[399805930,1766687448167,-533.81197033,0.00016438,2]
[399805931,1766687448177,-500.0,0.00016438,2]
[399805932,1766687448187,-716.0,0.00016438,2]
[399805933,1766687448197,-800.0,0.00016438,2]
[399805934,1766687448207,-500.0,0.00016438,2]
[399805935,1766687448217,-809.0,0.00016438,2]
[399805936,1766687448228,-150.0,0.0001644,2]
[399805937,1766687448238,-150.0,0.00016441,2]
[399805938,1766687448247,-150.0,0.00016448,2]
[399805939,1766687448257,-150.0,0.0001645,2]
[399805940,1766687448268,-722.0,0.00016451,2]
[399805941,1766687448283,-150.0,0.00016452,2]
[399805942,1766687448293,-150.0,0.00016453,2]
[399805943,1766687448303,-177.03875056,0.00016454,2]
[399805944,1766687448312,-150.0,0.00016462,2]
[399805945,1766687448323,-500.0,0.00016465,2]
[399805946,1766687448334,-150.0,0.00016469,2]
[399805947,1766687448345,-150.0,0.00016469,2]
[399805948,1766687448355,-150.0,0.00016471,2]
[399805949,1766687448365,-177.03875056,0.00016472,2]
[399805950,1766687448375,-150.0,0.00016473,2]
[399805951,1766687448384,-41325.20904142,0.00016474,2]
[399805952,1766687448394,-150.0,0.00016477,2]
[399805953,1766687448404,-583.07830005,0.00016477,2]
[399805954,1766687448415,-150.0,0.00016483,2]
[399805955,1766687448424,-177.03875056,0.00016489,2]
[399805956,1766687448435,-1178.96939851,0.00016492,2]
[399805957,1766687448445,-150.0,0.00016493,2]
[399805958,1766687448455,-500.0,0.00016493,2]
[399805959,1766687448465,-150.0,0.00016501,2]
[399805960,1766687448475,-150.0,0.00016501,2]
[399805961,1766687448485,-1320.0,0.00016503,2]
[399805962,1766687448495,-150.0,0.00016504,2]
[399805963,1766687448506,-150.0,0.00016505,2]
[399805964,1766687448516,-177.03875056,0.00016506,2]
[399805965,1766687448526,-150.0,0.00016506,2]
[399805966,1766687448537,-150.0,0.00016512,2]
[399805967,1766687448547,-11968.5723878,0.00016518,2]
[399805968,1766687448557,-500.0,0.0001652,2]
[399805969,1766687448567,-177.03875056,0.00016523,2]
[399805970,1766687448578,-150.0,0.00016525,2]
[399805971,1766687448588,-1627.68,0.00016528,2]
[399805972,1766687448598,-15645.58578967,0.00016529,2]
[399805973,1766687448608,-150.0,0.00016531,2]
[399805974,1766687448618,-150.0,0.00016532,2]
[399805975,1766687448628,-150.0,0.00016533,2]
[399805976,1766687448639,-150.0,0.00016533,2]
[399805977,1766687448650,-1320.0,0.00016539,2]
[399805978,1766687448660,-150.0,0.00016539,2]
[399805979,1766687448671,-177.03875056,0.0001654,2]
[399805980,1766687448682,-150.0,0.00016543,2]
[399805981,1766687448692,-150.0,0.00016543,2]
[399805982,1766687448702,-150.0,0.00016546,2]
[399805983,1766687448713,-150.0,0.0001655,2]
[399805984,1766687448723,-150.0,0.00016552,2]
[399805985,1766687448733,-177.03875056,0.00016557,2]
[399805986,1766687448743,-150.0,0.00016562,2]
[399805987,1766687448754,-150.0,0.00016562,2]
[399805988,1766687448764,-150.0,0.00016562,2]
[399805989,1766687448778,-150.0,0.00016567,2]
[399805990,1766687448788,-1320.0,0.00016568,2]
[399805991,1766687448798,-150.0,0.00016572,2]
[399805992,1766687448808,-177.03875056,0.00016575,2]
[399805993,1766687448818,-150.0,0.0001658,2]
[399805994,1766687448828,-150.0,0.00016588,2]
[399805995,1766687448839,-150.0,0.0001659,2]
[399805996,1766687448849,-150.0,0.00016591,2]
[399805997,1766687448860,-177.03875056,0.00016592,2]
[399805998,1766687448871,-150.0,0.00016592,2]
[399805999,1766687448880,-1320.0,0.00016593,2]
[399806000,1766687448891,-150.0,0.00016598,2]
[399806001,1766687448901,-358.86034089,0.000166,2]
[399806002,1766687448911,-150.0,0.00016609,2]
[399806003,1766687448921,-177.03875056,0.00016609,2]
[399806004,1766687448930,-150.0,0.00016611,2]
[399806005,1766687448941,-150.0,0.00016617,2]
[399806006,1766687448951,-150.0,0.00016617,2]
[399806007,1766687448962,-150.0,0.00016618,2]
[399806008,1766687448982,-150.0,0.00016622,2]
[399806009,1766687448996,-177.03875056,0.00016626,2]
[399806010,1766687449006,-150.0,0.00016629,2]
[399806011,1766687449016,-150.0,0.0001663,2]
[399806012,1766687449026,-150.0,0.00016631,2]
[399806013,1766687449036,-722.0,0.0001664,2]
[399806014,1766687449046,-177.03875056,0.00016643,2]
[399806015,1766687449057,-150.0,0.00016647,2]
[399806016,1766687449067,-150.0,0.00016647,2]
[399806017,1766687449077,-150.0,0.00016647,2]
[399806018,1766687449087,-150.0,0.00016647,2]
[399806019,1766687449097,-150.0,0.00016651,2]
[399806020,1766687449107,-150.0,0.00016651,2]
[399806021,1766687449117,-150.0,0.00016653,2]
[399806022,1766687449127,-150.0,0.00016654,2]
[399806023,1766687449137,-10795.96324327,0.0001666,2]
[399806024,1766687449147,-177.03875056,0.0001666,2]
[399806025,1766687449157,-1271.446,0.00016664,2]
[399806026,1766687449167,-432.0,0.00016664,2]
[399806027,1766687449178,-919.814,0.00016664,2]
[399806028,1766687449187,-1211.891,0.00016664,2]
[399806029,1766687449197,-1327.0,0.00016664,2]
[399806030,1766687449207,-2430.0,0.00016664,2]
[399806031,1766687449217,-4807.0,0.00016664,2]
[399806032,1766687449226,-150.0,0.0001667,2]
[399806033,1766687449237,-150.0,0.00016672,2]
[399806034,1766687449247,-150.0,0.00016675,2]
[399806035,1766687449258,-177.03875056,0.00016677,2]
[399806036,1766687449273,-150.0,0.00016683,2]
[399806037,1766687449291,-150.0,0.0001669,2]
[399806038,1766687449301,-150.0,0.00016691,2]
[399806039,1766687449311,-150.0,0.00016691,2]
[399806040,1766687449322,-150.0,0.00016693,2]
[399806041,1766687449333,-177.03875056,0.00016695,2]
[399806042,1766687449343,-150.0,0.00016695,2]
[399806043,1766687449355,-595.37131296,0.00016697,2]
[399806044,1766687449365,-150.0,0.00016703,2]
[399806045,1766687449375,-150.0,0.00016703,2]
[399806046,1766687449385,-150.0,0.0001671,2]
[399806047,1766687449478,-177.03875056,0.00016712,2]
[399806048,1766687449488,-165.52,0.00016712,2]
[399806049,1766687449498,-150.0,0.00016713,2]
[399806050,1766687449507,-150.0,0.00016714,2]
[399806051,1766687449517,-150.0,0.00016718,2]
[399806052,1766687449526,-150.0,0.00016725,2]
[399806053,1766687449537,-150.0,0.00016728,2]
[399806054,1766687449547,-177.03875056,0.00016729,2]
[399806055,1766687449558,-150.0,0.0001673,2]
[399806056,1766687449568,-150.0,0.0001673,2]
[399806057,1766687449579,-500.0,0.00016731,2]
[399806058,1766687449589,-598.60555363,0.00016731,2]
[399806059,1766687449599,-559.28446362,0.00016731,2]
[399806060,1766687449609,-500.0,0.00016731,2]
[399806061,1766687449619,-1000.0,0.00016731,2]
[399806062,1766687449629,-308.61264672,0.00016731,2]
[399806063,1766687449640,-500.0,0.00016731,2]
[399806064,1766687449650,-500.0,0.00016731,2]
[399806065,1766687449660,-500.0,0.00016731,2]
[399806066,1766687449670,-207.3850141,0.00016731,2]
[399806067,1766687449680,-500.0,0.00016731,2]
[399806068,1766687449690,-500.0,0.00016731,2]
[399806069,1766687449700,-500.0,0.00016731,2]
[399806070,1766687449709,-500.0,0.00016731,2]
[399806071,1766687449719,-500.0,0.00016731,2]
[399806072,1766687449729,-500.0,0.00016731,2]
[399806073,1766687449739,-500.0,0.00016731,2]
[399806074,1766687449749,-500.0,0.00016731,2]
[399806075,1766687449759,-500.0,0.00016731,2]
[399806076,1766687449768,-500.0,0.00016731,2]
[399806077,1766687449778,-150.0,0.00016732,2]
[399806078,1766687449788,-150.0,0.00016735,2]
[399806079,1766687449798,-300.0,0.0001674,2]
[399806080,1766687449807,-150.0,0.0001674,2]
[399806081,1766687449817,-1000.0,0.00016742,2]
[399806082,1766687449826,-150.0,0.00016744,2]
[399806083,1766687449836,-150.0,0.00016744,2]
[399806084,1766687449846,-177.03875056,0.00016746,2]
[399806085,1766687449855,-1000.0,0.00016749,2]
[399806086,1766687449865,-150.0,0.00016749,2]
[399806087,1766687449875,-150.0,0.00016753,2]
[399806088,1766687449884,-150.0,0.00016756,2]
[399806089,1766687449894,-1000.0,0.00016757,2]
[399806090,1766687449904,-150.0,0.0001676,2]
[399806091,1766687449914,-150.0,0.0001676,2]
[399806092,1766687449923,-150.0,0.0001676,2]
[399806093,1766687449933,-177.03875056,0.00016763,2]
[399806094,1766687449943,-1000.0,0.00016764,2]
[399806095,1766687449952,-150.0,0.00016765,2]
[399806096,1766687449962,-150.0,0.00016765,2]
[399806097,1766687449972,-150.0,0.00016769,2]
[399806098,1766687449981,-150.0,0.00016774,2]
[399806099,1766687449992,-2552.46753441,0.00016775,2]
[399806100,1766687450002,-150.0,0.00016777,2]
[399806101,1766687450011,-177.03875056,0.0001678,2]
[399806102,1766687450021,-150.0,0.00016785,2]
[399806103,1766687450031,-150.0,0.00016788,2]
[399806104,1766687450041,-150.0,0.00016789,2]
[399806105,1766687450051,-150.0,0.00016792,2]
[399806106,1766687450061,-300.0,0.00016793,2]
[399806107,1766687450071,-150.0,0.00016798,2]
[399806108,1766687450082,-177.03875056,0.00016798,2]
[399806109,1766687450091,-2552.46753437,0.000168,2]
[399806110,1766687450101,-150.0,0.00016802,2]
[399806111,1766687450111,-150.0,0.00016802,2]
[399806112,1766687450120,-150.0,0.00016804,2]
[399806113,1766687450130,-150.0,0.00016807,2]
[399806114,1766687450140,-150.0,0.00016809,2]
[399806115,1766687450149,-150.0,0.0001681,2]
[399806116,1766687450159,-150.0,0.00016814,2]
[399806117,1766687450171,-177.03875056,0.00016815,2]
[399806118,1766687450180,-150.0,0.00016816,2]
[399806119,1766687450189,-150.0,0.00016819,2]
[399806120,1766687450199,-2552.46753437,0.00016825,2]
[399806121,1766687450209,-150.0,0.00016828,2]
[399806122,1766687450219,-926.45060488,0.0001683,2]
[399806123,1766687450228,-300.0,0.0001683,2]
[399806124,1766687450238,-1040.65765088,0.0001683,2]
[399806125,1766687450248,-177.03875056,0.00016832,2]
[399806126,1766687450258,-300.0,0.00016834,2]
[399806127,1766687450267,-150.0,0.00016835,2]
[399806128,1766687450281,-150.0,0.00016839,2]
[399806129,1766687450291,-150.0,0.00016839,2]
[399806130,1766687450301,-150.0,0.00016839,2]
[399806131,1766687450310,-150.0,0.0001684,2]
[399806132,1766687450323,-150.0,0.00016841,2]
[399806133,1766687450333,-150.0,0.00016845,2]
[399806134,1766687450344,-150.0,0.00016845,2]
[399806135,1766687450356,-1000.0,0.00016845,2]
[399806136,1766687450366,-150.0,0.00016848,2]
[399806137,1766687450376,-300.0,0.00016849,2]
[399806138,1766687450386,-177.03875056,0.00016849,2]
[399806139,1766687450396,-150.0,0.0001685,2]
[399806140,1766687450405,-2552.46753437,0.0001685,2]
[399806141,1766687450415,-300.0,0.00016859,2]
[399806142,1766687450425,-1000.0,0.0001686,2]
[399806143,1766687450436,-150.0,0.0001686,2]
[399806144,1766687450445,-200.0,0.00016863,2]
[399806145,1766687450456,-200.0,0.00016864,2]
[399806146,1766687450465,-200.0,0.00016864,2]
[399806147,1766687450475,-200.0,0.00016864,2]
[399806148,1766687450485,-200.0,0.00016864,2]
[399806149,1766687450495,-150.0,0.00016865,2]
[399806150,1766687450505,-1000.0,0.00016866,2]
[399806151,1766687450515,-177.03875056,0.00016866,2]
[399806152,1766687450524,-160.79787959,0.00016867,2]
[399806153,1766687450535,-150.0,0.00016868,2]
[399806154,1766687450551,-1000.0,0.0001687,2]
[399806155,1766687450573,-150.0,0.00016873,2]
[399806156,1766687450583,-150.0,0.00016873,2]
[399806157,1766687450593,-25000.0,0.00016874,3]
[399806158,1766687450603,-1000.0,0.00016875,2]
[399806159,1766687450612,-2552.46753437,0.00016875,2]
[399806160,1766687450622,-150.0,0.00016876,2]
[399806161,1766687450632,-150.0,0.0001688,2]
[399806162,1766687450641,-150.0,0.00016881,2]
[399806163,1766687450651,-25000.0,0.00016882,3]
[399806164,1766687450661,-177.03875056,0.00016883,2]
[399806165,1766687450671,-150.0,0.00016888,2]
[399806166,1766687450682,-150.0,0.00016889,2]
[399806167,1766687450692,-150.0,0.00016889,2]
[399806168,1766687450702,-150.0,0.0001689,2]
[399806169,1766687450713,-25000.0,0.00016891,3]
[399806170,1766687450724,-150.0,0.00016895,2]
[399806171,1766687450733,-150.0,0.00016897,2]
[399806172,1766687450744,-500.0,0.00016899,2]
[399806173,1766687450754,-500.0,0.00016899,2]
[399806174,1766687450763,-500.0,0.00016899,2]
[399806175,1766687450772,-150.0,0.00016899,2]
[399806176,1766687450782,-536.56,0.00016899,2]
[399806177,1766687450792,-502.85222865,0.00016899,2]
[399806178,1766687450802,-514.26394542,0.00016899,2]
[399806179,1766687450811,-521.55720495,0.000169,2]
[399806180,1766687450821,-17528.555,0.000169,2]
[399806181,1766687450831,-10000.0,0.000169,2]
[399806182,1766687450840,-25000.0,0.000169,3]
[399806183,1766687450850,-170.28248417,0.000169,2]
[399806184,1766687450860,-15645.58578967,0.000169,2]
[399806185,1766687450870,-1926.43051864,0.000169,3]
[399806186,1766687450879,-4210.01963503,0.000169,2]
[399806187,1766687450889,-1178.96939851,0.000169,2]
[399806188,1766687450899,-2552.46753437,0.000169,2]
[399806189,1766687450909,-351.42531684,0.000169,2]
[399806190,1766687450918,-11690.0,0.000169,2]
[399806191,1766687450928,-177.03875056,0.00016901,2]
[399806192,1766687450938,-150.0,0.00016901,2]
[399806193,1766687450948,-150.0,0.00016902,2]
[399806194,1766687450958,-150.0,0.00016907,2]
[399806195,1766687450967,-150.0,0.00016912,2]
[399806196,1766687450977,-150.0,0.00016912,2]
[399806197,1766687450987,-177.03875056,0.00016918,2]
[399806198,1766687450997,-300.0,0.00016918,2]
[399806199,1766687451006,-150.0,0.00016923,2]
[399806200,1766687451016,-150.0,0.00016924,2]
[399806201,1766687451026,-150.0,0.00016926,2]
[399806202,1766687451035,-300.0,0.00016927,2]
[399806203,1766687451046,-150.0,0.00016927,2]
[399806204,1766687451056,-150.0,0.0001693,2]
[399806205,1766687451066,-300.0,0.00016931,2]
[399806206,1766687451076,-1537.98162864,0.00016932,2]
[399806207,1766687451086,-1000.0,0.00016933,2]
[399806208,1766687451096,-177.03875056,0.00016935,2]
[399806209,1766687451106,-150.0,0.00016938,2]
[399806210,1766687451116,-1000.0,0.00016939,2]
[399806211,1766687451126,-150.0,0.00016944,2]
[399806212,1766687451136,-150.0,0.00016947,2]
[399806213,1766687451148,-150.0,0.00016949,2]
[399806214,1766687451158,-177.03875056,0.00016952,2]
[399806215,1766687451168,-300.0,0.00016954,2]
[399806216,1766687451178,-266.0,0.00016955,2]
[399806217,1766687451188,-150.0,0.00016956,2]
[399806218,1766687451199,-150.0,0.00016958,2]
[399806219,1766687451208,-3899.0,0.00016959,2]
[399806220,1766687451218,-150.0,0.00016962,2]
[399806221,1766687451227,-1000.0,0.00016963,2]
[399806222,1766687451237,-150.0,0.00016965,2]
[399806223,1766687451247,-150.0,0.00016967,2]
[399806224,1766687451258,-177.03875056,0.00016969,2]
[399806225,1766687451269,-500.0,0.0001697,2]
[399806226,1766687451283,-500.0,0.0001697,2]
[399806227,1766687451292,-800.78551976,0.0001697,2]
[399806228,1766687451301,-500.0,0.0001697,2]
[399806229,1766687451311,-500.0,0.00016973,2]
[399806230,1766687451323,-150.0,0.00016973,2]
[399806231,1766687451332,-188.55950753,0.00016981,2]
[399806232,1766687451343,-505.30351694,0.00016983,2]
[399806233,1766687451353,-1537.98162864,0.00016986,2]
[399806234,1766687451363,-254.60367392,0.00016986,2]
[399806235,1766687451374,-199.93327437,0.00016986,2]
[399806236,1766687451384,-159.80056787,0.00016986,2]
[399806237,1766687451394,-298.55759469,0.00016986,2]
[399806238,1766687451405,-221.88950026,0.00016986,2]
[399806239,1766687451416,-250.03401256,0.00016986,2]
[399806240,1766687451426,-177.03875056,0.00016986,2]
[399806241,1766687451436,-171.10828189,0.00016986,2]
[399806242,1766687451447,-199.77046781,0.00016986,2]
[399806243,1766687451457,-176.41435158,0.00016986,2]
[399806244,1766687451468,-245.69368063,0.00016986,2]
[399806245,1766687451478,-284.4666085,0.00016986,2]
[399806246,1766687451489,-195.8030936,0.00016986,2]
[399806247,1766687451499,-270.36367615,0.00016986,2]
[399806248,1766687451510,-15686.9863313,0.00016989,2]
[399806249,1766687451520,-300.0,0.0001699,2]
[399806250,1766687451531,-2046.89296055,0.0001699,2]
[399806251,1766687451542,-2046.89296055,0.0001699,2]
[399806252,1766687451552,-623.4816508,0.00016991,2]
[399806253,1766687451562,-1627.68,0.00016991,2]
[399806254,1766687451572,-1627.68,0.00016991,2]
[399806255,1766687451583,-2988.4509961,0.00016992,2]
[399806256,1766687451593,-3672.4299704,0.00016992,2]
[399806257,1766687451603,-386167.3036808,0.00016992,2]
[399806258,1766687451614,-1690.3979154,0.00016992,2]
[399806259,1766687451624,-86223.6255491,0.00016992,2]
[399806260,1766687451635,-4132.6448825,0.00016992,2]
[399806261,1766687451646,-303262.4059213,0.00016992,2]
[399806262,1766687451656,-232.5921685,0.00016992,2]
[399806263,1766687451667,-1525.9448935,0.00016992,2]
[399806264,1766687451679,-151.0,0.00016992,2]
[399806265,1766687451689,-151.0,0.00016992,2]
[399806266,1766687451700,-151.0,0.00016992,2]
[399806267,1766687451711,-385.26348,0.00016992,2]
[399806268,1766687451722,-296.227164,0.00016992,2]
[399806269,1766687451732,-385.26348,0.00016992,2]
[399806270,1766687451742,-151.0,0.00016992,2]
[399806271,1766687451751,-385.26348,0.00016992,2]
[399806272,1766687451762,-151.0,0.00016992,2]
[399806273,1766687451772,-385.26348,0.00016992,2]
[399806274,1766687451782,-151.0,0.00016992,2]
[399806275,1766687451792,-151.0,0.00016992,2]
[399806276,1766687451803,-151.0,0.00016992,2]
[399806277,1766687451813,-151.0,0.00016992,2]
[399806278,1766687451823,-151.0,0.00016992,2]
[399806279,1766687451832,-151.0,0.00016992,2]
[399806280,1766687451843,-151.0,0.00016992,2]
[399806281,1766687451852,-151.0,0.00016992,2]
[399806282,1766687451862,-151.0,0.00016992,2]
[399806283,1766687451873,-151.0,0.00016992,2]
[399806284,1766687451883,-151.0,0.00016992,2]
[399806285,1766687451894,-201.01484,0.00016992,2]
[399806286,1766687451903,-416.372297,0.00016992,2]
[399806287,1766687451914,-416.372297,0.00016992,2]
[399806288,1766687451924,-416.372297,0.00016992,2]
[399806289,1766687451935,-416.372297,0.00016992,2]
[399806290,1766687451944,-151.0,0.00016992,2]
[399806291,1766687451954,-151.0,0.00016992,2]
[399806292,1766687451964,-151.0,0.00016992,2]
[399806293,1766687451974,-151.0,0.00016992,2]
[399806294,1766687451984,-151.0,0.00016992,2]
[399806295,1766687451994,-151.0,0.00016992,2]
[399806296,1766687452004,-1060.87558749,0.00016999,5]
[399806297,1766687452014,-150.0,0.00016999,2]
[399806298,1766687452024,-500.0,0.00016999,2]
[399806299,1766687452034,-500.0,0.00016999,2]
[399806300,1766687452045,-183.93452706,0.00016999,2]
[399806301,1766687452055,-300.0,0.00016999,2]
[399806302,1766687452066,-536.56,0.00016999,2]
[399806303,1766687452075,-536.56,0.00016999,2]
[399806304,1766687452086,-536.56,0.00016999,2]
[399806305,1766687452096,-536.56,0.00016999,2]